[Event "DVM U12 2021-22"]
[Site "Naumburg"]
[Date "2022.03.25"]
[Round "1"]
[White "Etzold, Emil"]
[Black "Lehmann, Lasse"]
[Result "0-1"]
[ECO "C51"]
[WhiteElo "953"]
[BlackElo "1459"]
[Annotator "NA"]
[PlyCount "32"]
[EventDate "2022.03.25"]
[EventType "team-tourn"]
[EventRounds "7"]
[EventCountry "GER"]
[SourceTitle "playchess.com"]
[Source "ChessBase"]
[SourceQuality "1"]
[TimeControl "40/5400+30:1800+30"]

1. e4 {[%emt 0:00:02]} e5 {[%emt 0:00:05]} 2. Nf3 {[%emt 0:00:06]} Nc6 {[%emt 0:00:10]} 3. Bc4 {[%emt 0:00:22]} Bc5 {[%emt 0:00:07]} 4. b4 {[%emt 0:00:34]} Bxb4 {[%emt 0:01:08]} 5. c3 {[%emt 0:00:16]} Bc5 {[%emt 0:00:43]} 6. d4 {[%emt 0:00:17]} exd4 {[%emt 0:00:20]} 7. cxd4 {[%emt 0:00:10]} Bb4+ {[%emt 0:00:07]} 8. Bd2 {[%emt 0:00:40]} Bxd2+ {[%emt 0:00:35]} 9. Qxd2 {[%emt 0:01:01]} Nf6 {[%emt 0:03:47]} 10. e5 {[%emt 0:06:33]} d5 {[%emt 0:01:46]} 11. exf6 {[%emt 0:05:25]} dxc4 {[%emt 0:00:13]} 12. Qe3+ {[%emt 0:01:40]} Be6 {[%emt 0:01:46]} 13. fxg7 {[%emt 0:03:37]} Rg8 {[%emt 0:00:56]} 14. Qh6 {[%emt 0:02:38]} Nxd4 {[%emt 0:00:38]} 15. Qxh7 {[%emt 0:04:32]} Nxf3+ {[%emt 0:00:24]} 16. gxf3 {[%emt 0:02:39]} f6 {[%emt 0:00:24]} 0-1

[Event "DVM U12 2021-22"]
[Site "Naumburg"]
[Date "2022.03.26"]
[Round "2"]
[White "Klaska, Philipp Leon"]
[Black "Burlutskaia, Maria"]
[Result "1/2-1/2"]
[ECO "C97"]
[WhiteElo "1959"]
[BlackElo "1420"]
[Annotator "ChessBase"]
[PlyCount "49"]
[EventDate "2022.03.25"]
[EventType "team-tourn"]
[EventRounds "7"]
[EventCountry "GER"]
[SourceTitle "playchess.com"]
[Source "ChessBase"]
[SourceQuality "1"]
[TimeControl "40/5400+30:1800+30"]

1. e4 {[%emt 0:00:04]} e5 {[%emt 0:00:06]} 2. Nf3 {[%emt 0:00:04]} Nc6 {[%emt 0:00:08]} 3. Bb5 {[%emt 0:00:05]} a6 {[%emt 0:00:08]} 4. Ba4 {[%emt 0:00:11]} Nf6 {[%emt 0:00:06]} 5. O-O {[%emt 0:01:46]} Be7 {[%emt 0:00:12]} 6. Re1 {[%emt 0:00:42]} b5 {[%emt 0:00:08]} 7. Bb3 {[%emt 0:00:09]} d6 {[%emt 0:00:10]} 8. h3 {[%emt 0:01:51]} O-O {[%emt 0:00:16]} 9. c3 {[%emt 0:01:35]} Na5 {[%emt 0:00:10]} 10. Bc2 {[%emt 0:01:42]} c5 {[%emt 0:00:22]} 11. d4 {[%emt 0:00:14]} Qc7 {[%emt 0:00:07]} 12. d5 {[%emt 0:02:03]} Nb7 {[%emt 0:01:33]} 13. b3 {[%emt 0:02:09]} Nd8 {[%emt 0:01:12]} 14. Nbd2 {[%emt 0:07:35]} Ne8 {[%emt 0:01:24]} 15. Nf1 {[%emt 0:01:54]} g6 {[%emt 0:00:31]} 16. Bh6 {[%emt 0:16:32]} Ng7 {[%emt 0:04:12]} 17. Qd2 {[%emt 0:12:45]} f6 {[%emt 0:01:14]} 18. g4 {[%emt 0:10:38]} Nf7 {[%emt 0:01:10]} 19. Bxg7 {[%emt 0:09:07]} Kxg7 {[%emt 0:00:13]} 20. Ne3 {[%emt 0:04:04]} Rh8 {[%emt 0:01:56]} 21. Kg2 {[%emt 0:05:52]} h5 {[%emt 0:01:06]} 22. Rh1 {[%emt 0:01:39]} Bd7 {[%emt 0:00:58]} 23. Rag1 {[%emt 0:02:02]} Rag8 {[%emt 0:01:11]} 24. Kf1 {[%emt 0:00:55]} Qc8 {[%emt 0:02:00]} 25. Nh4 {[%emt 0:05:28]} 1/2-1/2

[Event "DVM U12 2021-22"]
[Site "Naumburg"]
[Date "2022.03.26"]
[Round "2"]
[White "Haubold, Sebastian Marcel"]
[Black "Braun, Julian"]
[Result "1-0"]
[ECO "C77"]
[WhiteElo "1869"]
[BlackElo "1620"]
[Annotator "NA RC"]
[PlyCount "67"]
[EventDate "2022.03.25"]
[EventType "team-tourn"]
[EventRounds "7"]
[EventCountry "GER"]
[SourceTitle "playchess.com"]
[Source "ChessBase"]
[SourceQuality "1"]
[TimeControl "40/5400+30:1800+30"]

1. e4 {[%emt 0:00:04]} e5 {[%emt 0:00:00]} 2. Nf3 {[%emt 0:00:10]} Nc6 {[%emt 0:00:02]} 3. Bb5 {[%emt 0:00:10]} a6 {[%emt 0:00:01]} 4. Ba4 {[%emt 0:00:10]} Nf6 {[%emt 0:00:01]} 5. d4 {[%emt 0:00:22]} exd4 {[%emt 0:01:02]} 6. O-O {[%emt 0:00:11]} Be7 {[%emt 0:01:00]} 7. Re1 {[%emt 0:00:06]} O-O {[%emt 0:01:19]} 8. e5 {[%emt 0:01:24]} Nd5 {[%emt 0:01:03]} 9. Bb3 {[%emt 0:11:33]} Nb6 {[%emt 0:01:08]} 10. Nxd4 {[%emt 0:04:57]} Nxd4 {[%emt 0:01:42]} 11. Qxd4 {[%emt 0:00:16]} d5 {[%emt 0:00:32] 11...d6 is the fancy move.} 12. c3 {[%emt 0:04:58]} (12. exd6 $1 $14 Bxd6 13. Bf4) 12... Be6 {[%emt 0:04:09] [#]} 13. Be3 $146 {[%emt 0:12:21]} ({Predecessor:} 13. Bc2 Bg5 14. f4 Bh6 15. f5 Bxc1 16. Rxc1 Bd7 17. f6 Re8 18. Qh4 h6 19. Qg3 {1-0 (19) Torgersen,T (2012)-Ostby,M (1831) Oslo 2012}) 13... a5 {[%emt 0:05:30]} 14. Qd3 {[%emt 0:03:44]} c5 {[%emt 0:03:56]} 15. Bc2 {[%emt 0:00:19]} g6 {[%emt 0:00:55]} 16. Na3 {[%emt 0:05:02]} Rc8 {[%emt 0:02:41]} 17. Qe2 {[%emt 0:03:45]} Qc7 {[%emt 0:04:06]} 18. Bh6 {[%emt 0:02:46]} Rfd8 {[%emt 0:01:39]} 19. Nb5 {[%emt 0:01:19]} Qd7 {[%emt 0:01:04]} 20. Rad1 {[%emt 0:07:05]} Qe8 {[%emt 0:11:07]} (20... Nc4 $11 21. Ba4 Nb6) 21. Nd6 {[%emt 0:03:43]} Rxd6 {[%emt 0:06:01]} (21... Bxd6 $2 22. exd6 Bf5 23. Qd2) 22. exd6 {[%emt 0:00:16]} Bxd6 {[%emt 0:00:32]} 23. Qf3 {[%emt 0:03:01]} (23. f4 $142) 23... Qe7 {[%emt 0:02:02]} 24. Bf4 {[%emt 0:02:28]} Bxf4 {[%emt 0:01:57]} 25. Qxf4 {[%emt 0:00:02]} Rd8 {[%emt 0:07:36]} 26. b3 {[%emt 0:02:46]} Ra8 {[%emt 0:08:35]} 27. h4 {[%emt 0:02:10]} h5 {[%emt 0:01:20]} (27... Rc8 {might work better.} 28. h5 c4) 28. Rd3 {[%emt 0:06:24]} Qd7 $18 {[%emt 0:02:01]} (28... Kg7 29. Qg3 Ra6) 29. Rg3 {[%emt 0:01:07]} Kh7 {[%emt 0:07:15]} 30. Qg5 {[%emt 0:00:16]} Bf5 {[%emt 0:02:26]} 31. Re7 {[%emt 0:00:03]} Bxc2 {[%emt 0:00:48]} 32. Rxd7 {[%emt 0:00:04]} Nxd7 {[%emt 0:00:03]} 33. Qxd5 {[%emt 0:00:07]} Nf6 {[%emt 0:00:39]} 34. Qxf7+ 1-0

[Event "DVM U12 2021-22"]
[Site "Naumburg"]
[Date "2022.03.26"]
[Round "2"]
[White "Lu, Yunong Elias"]
[Black "Haubold, Christian Lucas"]
[Result "0-1"]
[ECO "C55"]
[WhiteElo "1677"]
[BlackElo "1808"]
[Annotator "NA RC"]
[PlyCount "90"]
[EventDate "2022.03.25"]
[EventType "team-tourn"]
[EventRounds "7"]
[EventCountry "GER"]
[SourceTitle "playchess.com"]
[Source "ChessBase"]
[SourceQuality "1"]
[TimeControl "40/5400+30:1800+30"]

{[%evp 23,82,-51,-39,-77,-61,-77,-74,-68,-60,-73,32767,32767,-98,-79,32767,32767,32767,32767,32767,-39,32767,32767,-30,32767,-112,32767,-59,-164,-168,-167,-76,32767,32767,32767,-88,32767,32767,32767,32767,32767,0,0,0,-360,-365,-358,-344,32767,-433,-443,-566,-609,-1229,-421,-603,-777,-717,-633,-12837,-4132,-12839]} 1. e4 {[%emt 0:00:04]} e5 {[%emt 0:00:08]} 2. Nf3 {[%emt 0:00:22]} Nc6 {[%emt 0:00:17]} 3. d4 {[%emt 0:00:16]} exd4 {[%emt 0:00:21]} 4. Bc4 {[%emt 0:00:14]} Bc5 {[%emt 0:00:29]} 5. O-O {[%emt 0:00:58]} Nf6 {[%emt 0:01:05]} 6. e5 {[%emt 0:01:55]} d5 {[%emt 0:01:41]} 7. exf6 {[%emt 0:00:21]} dxc4 {[%emt 0:00:15]} 8. Re1+ {[%emt 0:00:15]} Be6 {[%emt 0:00:06]} 9. Ng5 {[%emt 0:00:31]} Qd5 {[%emt 0:01:52]} 10. Nc3 {[%emt 0:01:07]} Qf5 {[%emt 0:01:43]} 11. Nce4 {[%emt 0:01:00]} O-O-O {[%emt 0:04:53]} 12. Nxc5 {[%emt 0:11:31]} ({Better is} 12. Nxe6 $14 fxe6 13. g4 (13. fxg7 Rhg8 $15)) 12... Qxc5 {[%emt 0:00:17]} 13. Rxe6 {[%emt 0:01:45]} (13. fxg7 $15 {feels stronger.} Rhg8 14. Nxe6 fxe6 15. Bh6 (15. Rxe6 Rxg7 16. Re4 d3 $17)) 13... fxe6 {[%emt 0:00:43]} 14. Nxe6 {[%emt 0:00:53]} Qe5 {[%emt 0:02:02]} 15. Nxd8 {[%emt 0:01:13]} Rxd8 {[%emt 0:01:02]} 16. fxg7 {[%emt 0:03:50]} Qxg7 {[%emt 0:04:26]} 17. Bf4 {[%emt 0:07:09]} d3 {[%emt 0:07:50]} 18. c3 {[%emt 0:01:39]} Re8 {[%emt 0:03:48]} 19. Be3 {[%emt 0:05:49]} a6 {[%emt 0:04:14]} 20. Qh5 {[%emt 0:04:53]} Rd8 {[%emt 0:07:42]} 21. Rd1 {[%emt 0:04:34]} Kb8 {[%emt 0:11:10]} 22. Qh4 {[%emt 0:09:32]} Rg8 {[%emt 0:03:26]} 23. g3 {[%emt 0:03:43] [#]} Qf7 $1 {[%emt 0:01:34]} 24. Qf4 {[%emt 0:06:50]} Qh5 {[%emt 0:01:48]} (24... Qd5 $17 25. f3 Re8) 25. Rd2 {[%emt 0:01:27]} (25. Re1 $15) 25... Ne5 {[%emt 0:00:13]} 26. Kg2 {[%emt 0:01:33]} Re8 {[%emt 0:03:38]} (26... Ng4 $142 27. h3 Nxe3+ 28. Qxe3 Re8) 27. h3 {[%emt 0:04:30]} Qg6 {[%emt 0:03:48]} 28. f3 {[%emt 0:07:38]} Qe6 {[%emt 0:05:38]} 29. Bf2 {[%emt 0:03:51]} Ng6 {[%emt 0:03:29]} 30. Qd4 {[%emt 0:03:09]} b6 {[%emt 0:00:26]} 31. b3 {[%emt 0:02:21]} cxb3 {[%emt 0:05:50]} 32. axb3 {[%emt 0:00:12]} Ne5 {[%emt 0:00:45]} 33. Rxd3 $2 {[%emt 0:03:59]} (33. f4 {gets mated.} Qc6+ 34. Kf1 Qh1+ 35. Bg1 Nf3 36. Rb2 d2 37. Rxd2 Re1+ 38. Kf2 Nxd4 39. Rxd4 Qxg1+ 40. Kf3 h5 41. Rd8+ Kb7) (33. c4 $11 {and White is okay.}) 33... Nxd3 {[%emt 0:03:08]} 34. Qxd3 {[%emt 0:00:07]} Qxb3 {[%emt 0:01:41]} 35. Qxa6 {[%emt 0:00:33]} Qxc3 {[%emt 0:07:38]} 36. Bxb6 {[%emt 0:01:33]} cxb6 {[%emt 0:02:24]} 37. Qxb6+ {[%emt 0:00:09]} Kc8 {[%emt 0:00:05]} 38. Qa6+ {[%emt 0:00:19]} Kd7 {[%emt 0:00:12]} 39. Qb7+ {[%emt 0:00:41]} Kd8 {[%emt 0:00:54]} 40. Qa8+ {[%emt 0:00:46]} Ke7 {[%emt 0:00:11]} 41. Qe4+ {[%emt 0:30:49]} Kf8 $19 {[%emt 0:30:13]} 42. Qf5+ {[%emt 0:01:21]} Kg8 {[%emt 0:00:07]} 43. h4 {[%emt 0:00:31]} Qe5 {[%emt 0:01:00]} 44. Qg4+ {[%emt 0:00:34]} Kh8 {[%emt 0:00:10]} 45. Qb4 {[%emt 0:00:33]} Rb8 {[%emt 0:00:36]} 0-1

[Event "DVM U12 2021-22"]
[Site "Naumburg"]
[Date "2022.03.26"]
[Round "2"]
[White "Wartenberg, Alexander"]
[Black "Könnecke, Maximilian"]
[Result "1-0"]
[ECO "C44"]
[WhiteElo "1639"]
[BlackElo "929"]
[Annotator "NA"]
[PlyCount "57"]
[EventDate "2022.03.25"]
[EventType "team-tourn"]
[EventRounds "7"]
[EventCountry "GER"]
[SourceTitle "playchess.com"]
[Source "ChessBase"]
[SourceQuality "1"]
[TimeControl "40/5400+30:1800+30"]

1. e4 {[%emt 0:00:06]} e5 {[%emt 0:00:42]} 2. Nf3 {[%emt 0:00:08]} Nc6 {[%emt 0:00:35]} 3. d4 {[%emt 0:00:05]} f6 {[%emt 0:06:00]} 4. dxe5 {[%emt 0:01:05]} fxe5 {[%emt 0:03:43]} 5. Bc4 {[%emt 0:00:40]} Bc5 {[%emt 0:02:38]} 6. Ng5 {[%emt 0:01:53]} Qf6 {[%emt 0:00:49]} 7. O-O {[%emt 0:00:33]} Nge7 {[%emt 0:03:40]} 8. Nf7 {[%emt 0:05:20]} Rf8 {[%emt 0:01:06]} 9. Bg5 {[%emt 0:01:01]} Qg6 {[%emt 0:01:24]} 10. Bxe7 {[%emt 0:03:05]} Nxe7 {[%emt 0:00:23]} 11. Nxe5 {[%emt 0:02:23]} Qg5 {[%emt 0:02:16]} 12. Nf3 {[%emt 0:02:17]} Qg6 {[%emt 0:02:38]} 13. Nc3 {[%emt 0:04:54]} d6 {[%emt 0:00:59]} 14. Be2 {[%emt 0:01:06]} Bh3 {[%emt 0:00:23]} 15. Ne1 {[%emt 0:00:30]} O-O-O {[%emt 0:01:15]} 16. Qd3 {[%emt 0:03:57]} Qf6 {[%emt 0:02:02]} 17. Qxh3+ Kb8 {[%emt 0:01:32]} 18. Nd3 {[%emt 0:01:36]} Ng6 {[%emt 0:05:43]} 19. Nxc5 {[%emt 0:00:42]} dxc5 {[%emt 0:00:52]} 20. Qe3 {[%emt 0:01:06]} Nf4 {[%emt 0:00:30]} 21. Bf3 {[%emt 0:01:03]} g5 {[%emt 0:01:53]} 22. Nd5 {[%emt 0:00:22]} Nxd5 {[%emt 0:01:00]} 23. exd5 {[%emt 0:00:17]} Qxb2 24. Rab1 Qxc2 {[%emt 0:03:42]} 25. d6 {[%emt 0:00:40]} Rxd6 {[%emt 0:00:44]} 26. Rxb7+ {[%emt 0:00:40]} Kc8 27. Rfb1 Rxf3 {[%emt 0:07:09]} 28. Qe8+ {[%emt 0:01:17]} Rd8 {[%emt 0:00:36]} 29. Rb8# 1-0

[Event "DVM U12 2021-22"]
[Site "Naumburg"]
[Date "2022.03.26"]
[Round "2"]
[White "Xue, Luka"]
[Black "Mombauer, Felix"]
[Result "1-0"]
[ECO "D10"]
[WhiteElo "1610"]
[BlackElo "1240"]
[Annotator "NA"]
[PlyCount "59"]
[EventDate "2022.03.25"]
[EventType "team-tourn"]
[EventRounds "7"]
[EventCountry "GER"]
[SourceTitle "playchess.com"]
[Source "ChessBase"]
[SourceQuality "1"]
[TimeControl "40/5400+30:1800+30"]

1. d4 {[%emt 0:00:03]} d5 {[%emt 0:00:10]} 2. c4 {[%emt 0:00:12]} c6 {[%emt 0:00:20]} 3. cxd5 {[%emt 0:00:08]} cxd5 {[%emt 0:00:11]} 4. Bf4 {[%emt 0:00:05]} Nc6 {[%emt 0:00:31]} 5. e3 {[%emt 0:00:07]} Nf6 {[%emt 0:00:22]} 6. Nc3 {[%emt 0:00:12]} e6 {[%emt 0:00:16]} 7. Bd3 {[%emt 0:00:46]} Bd7 {[%emt 0:00:29]} 8. a3 {[%emt 0:00:47]} Qb6 {[%emt 0:02:58]} 9. Nge2 {[%emt 0:10:45]} Be7 {[%emt 0:00:59]} 10. O-O {[%emt 0:00:34]} Nh5 {[%emt 0:00:41]} 11. h3 {[%emt 0:17:18]} Nxf4 {[%emt 0:00:20]} 12. Nxf4 {[%emt 0:00:10]} O-O-O {[%emt 0:00:43]} 13. b4 {[%emt 0:01:40]} g5 {[%emt 0:00:58]} 14. Nfxd5 {[%emt 0:00:58]} exd5 {[%emt 0:01:15]} 15. Nxd5 {[%emt 0:00:12]} Qc7 {[%emt 0:00:51]} 16. Nxc7 {[%emt 0:00:15]} Kxc7 {[%emt 0:00:28]} 17. Rc1 {[%emt 0:00:39]} Kb8 {[%emt 0:00:15]} 18. b5 {[%emt 0:00:42]} Nxd4 {[%emt 0:01:03]} 19. exd4 {[%emt 0:00:03]} h5 {[%emt 0:00:29]} 20. Qe2 {[%emt 0:01:07]} Bd6 {[%emt 0:00:33]} 21. a4 {[%emt 0:02:14]} g4 {[%emt 0:01:06]} 22. h4 {[%emt 0:00:30]} Rde8 {[%emt 0:01:15]} 23. Qa2 {[%emt 0:02:08]} f5 {[%emt 0:01:07]} 24. Qd5 {[%emt 0:00:46]} Rh6 {[%emt 0:00:38]} 25. a5 {[%emt 0:01:33]} Bc8 {[%emt 0:01:21]} 26. a6 {[%emt 0:00:32]} b6 {[%emt 0:00:48]} 27. Rxc8+ {[%emt 0:04:48]} Kxc8 {[%emt 0:00:41]} 28. Qa8+ {[%emt 0:02:27]} Kd7 {[%emt 0:01:14]} 29. Qb7+ {[%emt 0:02:49]} Bc7 {[%emt 0:00:44]} 30. Bxf5+ {[%emt 0:00:24]} 1-0

[Event "DVM U12 2021-22"]
[Site "Naumburg"]
[Date "2022.03.26"]
[Round "2"]
[White "Smith, Tobias"]
[Black "Torosyan, Bagrat"]
[Result "0-1"]
[ECO "E91"]
[WhiteElo "1571"]
[BlackElo "1695"]
[Annotator "NA RC"]
[PlyCount "92"]
[EventDate "2022.03.25"]
[EventType "team-tourn"]
[EventRounds "7"]
[EventCountry "GER"]
[SourceTitle "playchess.com"]
[Source "ChessBase"]
[SourceQuality "1"]
[TimeControl "40/5400+30:1800+30"]

1. d4 {[%emt 0:00:08]} Nf6 {[%emt 0:00:05]} 2. c4 {[%emt 0:00:10]} g6 {[%emt 0:00:07]} 3. Nc3 {[%emt 0:00:40]} Bg7 {[%emt 0:00:06]} 4. e4 {[%emt 0:00:12]} d6 {[%emt 0:00:10]} 5. Nf3 {[%emt 0:00:42]} O-O {[%emt 0:00:11]} 6. Be2 {[%emt 0:00:08]} Nbd7 {[%emt 0:00:12]} 7. O-O {[%emt 0:01:41]} e5 {[%emt 0:00:34]} 8. d5 {[%emt 0:00:10]} Nc5 {[%emt 0:02:20]} 9. Qc2 {[%emt 0:00:40]} a5 {[%emt 0:00:11]} 10. Bg5 {[%emt 0:01:43]} Qe8 {[%emt 0:01:54]} 11. Be3 {[%emt 0:07:59]} Nfd7 {[%emt 0:06:29]} 12. Nd2 {[%emt 0:10:27]} f5 {[%emt 0:01:47]} 13. f3 {[%emt 0:02:54]} f4 {[%emt 0:00:49]} 14. Bf2 {[%emt 0:03:53]} g5 {[%emt 0:00:30]} 15. b3 {[%emt 0:09:29]} b6 {[%emt 0:04:14]} 16. a3 {[%emt 0:02:17]} Nf6 {[%emt 0:02:41]} 17. b4 {[%emt 0:06:56]} Nb7 {[%emt 0:04:02]} 18. Nb5 {[%emt 0:08:01]} Qe7 {[%emt 0:05:15]} 19. Nb3 {[%emt 0:04:02]} a4 {[%emt 0:01:16]} 20. Nc1 {[%emt 0:01:24]} g4 {[%emt 0:01:23]} 21. Nd3 {[%emt 0:03:28]} g3 {[%emt 0:01:50]} 22. hxg3 {[%emt 0:00:20]} Nh5 {[%emt 0:00:39]} 23. gxf4 {[%emt 0:05:31]} exf4 {[%emt 0:00:56]} 24. Bd4 {[%emt 0:01:57]} Bxd4+ {[%emt 0:06:54]} 25. Nxd4 {[%emt 0:00:24]} Qg7 {[%emt 0:00:26]} 26. Nf5 {[%emt 0:04:53]} Bxf5 {[%emt 0:00:46]} 27. exf5 {[%emt 0:00:07]} Rxf5 {[%emt 0:04:10]} 28. Nf2 {[%emt 0:04:00]} Rg5 {[%emt 0:01:19]} 29. Ng4 {[%emt 0:02:41]} Ng3 {[%emt 0:00:46]} 30. Rfd1 {[%emt 0:01:56]} h5 {[%emt 0:01:22]} 31. Nh2 {[%emt 0:00:26]} Nf5 {[%emt 0:00:43]} 32. Bf1 {[%emt 0:03:17]} Ne3 {[%emt 0:01:17]} 33. Qd2 {[%emt 0:00:34]} Nxd1 {[%emt 0:05:08]} 34. Rxd1 {[%emt 0:00:32]} Rf8 {[%emt 0:03:30]} 35. Re1 {[%emt 0:04:13]} Nd8 {[%emt 0:01:46]} 36. Re4 {[%emt 0:03:40]} Qf6 {[%emt 0:02:36]} 37. Qc2 {[%emt 0:03:17]} Re5 {[%emt 0:09:04]} 38. Re2 {[%emt 0:04:07]} Nf7 {[%emt 0:01:17]} 39. Rf2 {[%emt 0:00:25]} Nh6 {[%emt 0:00:45]} 40. Qxa4 {[%emt 0:00:30]} Nf5 {[%emt 0:00:42]} 41. Qd7 {[%emt 0:30:26]} Re7 {[%emt 0:30:33]} 42. Qa4 {[%emt 0:00:33]} Re3 {[%emt 0:05:27]} 43. Qa7 {[%emt 0:00:00]} Rf7 {[%emt 0:00:00]} 44. c5 {[%emt 0:00:00]} dxc5 {[%emt 0:00:00]} 45. bxc5 {[%emt 0:00:00]} bxc5 {[%emt 0:00:00]} 46. Qxc5 {[%emt 0:00:00]} Qd6 {[%emt 0:00:00]} 0-1

[Event "DVM U12 2021-22"]
[Site "Naumburg"]
[Date "2022.03.26"]
[Round "2"]
[White "Zobel, Christian"]
[Black "Stettner, Oskar"]
[Result "1-0"]
[ECO "B10"]
[WhiteElo "1547"]
[BlackElo "1446"]
[Annotator "NA"]
[PlyCount "59"]
[EventDate "2022.03.25"]
[EventType "team-tourn"]
[EventRounds "7"]
[EventCountry "GER"]
[SourceTitle "playchess.com"]
[Source "ChessBase"]
[SourceQuality "1"]
[TimeControl "40/5400+30:1800+30"]

1. e4 {[%emt 0:00:03]} c6 {[%emt 0:00:01]} 2. Nc3 {[%emt 0:00:07]} d5 3. Nf3 {[%emt 0:00:05]} dxe4 {[%emt 0:00:48]} 4. Nxe4 {[%emt 0:00:05]} Nf6 {[%emt 0:00:09]} 5. Qe2 {[%emt 0:01:33]} Nxe4 {[%emt 0:00:15]} 6. Qxe4 {[%emt 0:00:07]} Qd5 {[%emt 0:00:06]} 7. Qh4 {[%emt 0:08:59]} Bf5 {[%emt 0:04:12]} 8. Bc4 {[%emt 0:03:21]} Qe4+ {[%emt 0:01:15]} 9. Qxe4 {[%emt 0:01:00]} Bxe4 {[%emt 0:00:07]} 10. Bxf7+ {[%emt 0:00:09]} Kd8 {[%emt 0:01:50]} 11. d3 {[%emt 0:02:15]} Bxf3 {[%emt 0:01:54]} 12. gxf3 {[%emt 0:00:52]} Nd7 {[%emt 0:00:56]} 13. Bf4 {[%emt 0:02:34]} e5 {[%emt 0:03:49]} 14. Be3 {[%emt 0:07:32]} Be7 {[%emt 0:05:46]} 15. Ke2 {[%emt 0:04:17]} Kc7 {[%emt 0:01:49]} 16. Rhg1 {[%emt 0:03:49]} g6 {[%emt 0:01:46]} 17. Bh6 {[%emt 0:04:36]} Bf8 {[%emt 0:00:17]} 18. Bg5 {[%emt 0:02:36]} Bd6 {[%emt 0:01:21]} 19. c3 {[%emt 0:03:59]} h6 {[%emt 0:02:09]} 20. Be3 {[%emt 0:01:20]} g5 {[%emt 0:00:08]} 21. Rh1 {[%emt 0:01:15]} Raf8 {[%emt 0:01:34]} 22. Bb3 {[%emt 0:01:45]} Rf6 {[%emt 0:03:29]} 23. h4 {[%emt 0:02:28]} Rhf8 {[%emt 0:02:28]} 24. hxg5 {[%emt 0:00:51]} hxg5 {[%emt 0:00:25]} 25. Rh3 {[%emt 0:00:12]} Rg6 {[%emt 0:02:22]} 26. Rg1 {[%emt 0:01:19]} Be7 {[%emt 0:01:39]} 27. Rhg3 {[%emt 0:00:24]} Rf5 {[%emt 0:03:48]} 28. Bc2 {[%emt 0:01:14]} e4 {[%emt 0:01:09]} 29. fxe4 {[%emt 0:01:52]} Re5 {[%emt 0:01:05]} 30. Bf4 {[%emt 0:00:18]} 1-0

[Event "DVM U12 2021-22"]
[Site "Naumburg"]
[Date "2022.03.26"]
[Round "2"]
[White "Cwiklik, Jonah"]
[Black "Rudolph, Simon"]
[Result "1-0"]
[ECO "B03"]
[WhiteElo "1409"]
[BlackElo "1403"]
[Annotator "NA"]
[PlyCount "121"]
[EventDate "2022.03.25"]
[EventType "team-tourn"]
[EventRounds "7"]
[EventCountry "GER"]
[SourceTitle "playchess.com"]
[Source "ChessBase"]
[SourceQuality "1"]
[TimeControl "40/5400+30:1800+30"]

1. e4 {[%emt 0:00:02]} Nf6 {[%emt 0:00:06]} 2. e5 {[%emt 0:00:12]} Nd5 {[%emt 0:00:08]} 3. c4 {[%emt 0:00:27]} Nb6 {[%emt 0:00:07]} 4. d4 {[%emt 0:00:14]} d6 {[%emt 0:00:09]} 5. exd6 {[%emt 0:00:10]} cxd6 {[%emt 0:00:12]} 6. Bd3 {[%emt 0:00:31]} g6 {[%emt 0:00:14]} 7. Be3 {[%emt 0:00:39]} Bg7 {[%emt 0:00:29]} 8. Nc3 {[%emt 0:00:16]} e6 {[%emt 0:00:18]} 9. Nge2 {[%emt 0:00:34]} O-O {[%emt 0:00:25]} 10. Qd2 {[%emt 0:00:31]} Nc6 {[%emt 0:00:54]} 11. a3 {[%emt 0:01:11]} Na5 {[%emt 0:00:54]} 12. Qc2 {[%emt 0:07:13]} Naxc4 {[%emt 0:01:09]} 13. Nb5 {[%emt 0:01:40]} Nxe3 {[%emt 0:00:56]} 14. fxe3 {[%emt 0:00:13]} Bd7 {[%emt 0:01:19]} 15. Nxd6 {[%emt 0:04:05]} Bc6 {[%emt 0:00:28]} 16. Ne4 {[%emt 0:01:24]} Nd5 {[%emt 0:01:04]} 17. Qd2 {[%emt 0:03:48]} Bh6 {[%emt 0:02:36]} 18. Nf4 {[%emt 0:01:52]} e5 {[%emt 0:01:25]} 19. Nxd5 {[%emt 0:02:31]} Qxd5 {[%emt 0:00:47]} 20. Nf6+ {[%emt 0:00:20]} Kg7 {[%emt 0:00:21]} 21. Nxd5 {[%emt 0:00:06]} Bxd5 {[%emt 0:00:17]} 22. dxe5 {[%emt 0:01:46]} Rfe8 {[%emt 0:01:00]} 23. Qc3 {[%emt 0:02:00]} Rac8 {[%emt 0:00:57]} 24. Qd4 {[%emt 0:01:45]} Rcd8 {[%emt 0:01:21]} 25. Qc3 {[%emt 0:07:07]} Bxe3 {[%emt 0:02:52]} 26. e6+ {[%emt 0:01:41]} f6 {[%emt 0:00:28]} 27. Qc7+ {[%emt 0:00:31]} Kh8 {[%emt 0:00:39]} 28. e7 {[%emt 0:03:47]} Rc8 {[%emt 0:01:05]} 29. Qd6 {[%emt 0:00:26]} Bxg2 {[%emt 0:00:46]} 30. Qxf6+ {[%emt 0:00:54]} Kg8 {[%emt 0:00:24]} 31. Bxg6 {[%emt 0:00:27]} hxg6 {[%emt 0:00:33]} 32. Qxg6+ {[%emt 0:00:12]} Kh8 {[%emt 0:00:23]} 33. Qxg2 {[%emt 0:00:12]} Rxe7 {[%emt 0:00:24]} 34. Qh3+ {[%emt 0:00:15]} Bh6+ {[%emt 0:00:13]} 35. Kf2 {[%emt 0:01:56]} Rf8+ {[%emt 0:00:21]} 36. Kg2 {[%emt 0:02:33]} Rg7+ {[%emt 0:01:32]} 37. Qg3 {[%emt 0:00:22]} Be3 {[%emt 0:02:20]} 38. Qxg7+ {[%emt 0:00:27]} Kxg7 {[%emt 0:00:14]} 39. h4 {[%emt 0:00:55]} Rf2+ {[%emt 0:01:00]} 40. Kg3 {[%emt 0:00:15]} Rxb2 {[%emt 0:00:49]} 41. Rab1 {[%emt 0:31:20]} Rc2 {[%emt 0:32:35]} 42. Rxb7+ {[%emt 0:00:34]} Kh6 {[%emt 0:00:19]} 43. Rd1 {[%emt 0:00:55]} Bc5 {[%emt 0:01:17]} 44. Rd5 {[%emt 0:06:33]} Rc3+ {[%emt 0:01:36]} 45. Kg4 {[%emt 0:01:58]} Rc4+ {[%emt 0:03:35]} 46. Kf3 {[%emt 0:01:12]} Rc3+ {[%emt 0:01:00]} 47. Ke4 {[%emt 0:00:50]} Re3+ {[%emt 0:00:44]} 48. Kf4 {[%emt 0:00:58]} Rc3 {[%emt 0:00:35]} 49. Kf5 {[%emt 0:04:08]} Rf3+ {[%emt 0:00:43]} 50. Ke6 {[%emt 0:01:17]} Rc3 {[%emt 0:02:19]} 51. Rc7 {[%emt 0:02:18]} Re3+ {[%emt 0:01:47]} 52. Re5 {[%emt 0:00:32]} Rxe5+ {[%emt 0:00:17]} 53. Kxe5 {[%emt 0:00:11]} Bxa3 54. Rxa7 Bf8 {[%emt 0:02:46]} 55. Kf5 {[%emt 0:01:05]} Bg7 {[%emt 0:00:33]} 56. Kg4 {[%emt 0:01:06]} Kh7 {[%emt 0:01:18]} 57. Kg5 {[%emt 0:00:22]} Kh8 {[%emt 0:01:34]} 58. Kg6 {[%emt 0:00:26]} Bf8 {[%emt 0:02:23]} 59. Ra8 {[%emt 0:00:29]} Kg8 {[%emt 0:00:44]} 60. h5 {[%emt 0:00:11]} Kh8 {[%emt 0:00:11]} 61. Rxf8# 1-0